Workbook

Sheet User_Info
B2: Name
B3: Banner ID | C3: 855855855
B4: Course #
B5: Course Name
B6: Professor Name
C8: FALSE | D8: I affirm that the work I am submitting is my own and represents my original effort. I have not used unauthorized assistance, nor have I engaged in any form of cheating to complete this assignment. I understand that the use of AI platforms is permitted as an aide or tutor to enhance my understanding and learning. I acknowledge that the final work submitted is my independent creation, and I am solely responsible for its content.
C10: FALSE | D10: I understand that I must complete ALL required inputs including formulas and save the file as an .xlsm each time.
C12: FALSE | D12: I have watched the introductory video.

Sheet TOC
B1: Chapter | C1: Topic | D1: Video link | G1: Topic | H1: Video link | T1: =NOW() -> 2025-01-22T12:49:29.770
B3: Operating System | C3: Windows | F3: Mac
G4: Office 365 Installation for Mac | H4: https://www.youtube.com/watch?v=3cMISRm8CEk
G5: Office 365 (WPU Wiki Page) | H5: https://itwiki.wpunj.edu/index.php/Microsoft_Office_365#Downloading_Office_on_a_Student%27s_Personal_Machine
C7: Setting up Excel (REQUIRED) | D7: video here | G7: Setting up Excel (REQUIRED) | H7: video here
B10: Workbooks
B11: 2.1 | C11: Document Properties | D11: https://youtu.be/y_P0jx7i5OI | F11: 2.1 | G11: Document Properties (Mac) | H11: https://youtu.be/fkEVrfKVti8
B12: 2.2 | C12: Inspect Workbook | D12: https://youtu.be/5lFwXkr5ZwU | F12: 2.2 | G12: Inspect Workbook (Mac) | H12: https://youtu.be/oLOJz7XnnGk
B13: 2.3 | C13: Insert Notes and Comments | D13: https://youtu.be/4I1vbwlyq6U | F13: 2.3 | G13: Insert Notes and Comments (Mac) | H13: https://youtu.be/oiKLrvnoPDs
B14: 2.4 | C14: Page Layout | D14: https://youtu.be/j6vz-vUdSLU | F14: 2.4 | G14: Page Layout (Mac) | H14: https://youtu.be/RfSEhfGBH4c
B15: 2.5 | C15: Show Formulas | D15: https://youtu.be/qjR8-mBmJiU | F15: 2.5 | G15: Show Formulas (Mac) | H15: https://youtu.be/O5u8ZxOgyHs
B16: 2.6 | C16: Headers and Footers | D16: https://youtu.be/fufRvmuCUWM | F16: 2.6 | G16: Headers and Footers (Mac) | H16: https://youtu.be/DdYwCWCCbiY
B17: 2.7 | C17: Quick Access Toolbar | D17: https://youtu.be/g2vYGLQ032E | F17: 2.7 | G17: Quick Access Toolbar (Mac) | H17: https://youtu.be/hbjeQLMZRaY
B18: 2.8 | C18: Change Workbook Views | D18: https://youtu.be/dI4ElyluMsQ | F18: 2.8 | G18: Change Workbook Views (Mac) | H18: https://youtu.be/yqF-rp5AD5I
B19: 2.9 | C19: Importing Data | D19: https://youtu.be/IZ4Q6hf40x0 | F19: 2.9 | G19: Importing Data (Mac) | H19: https://youtu.be/ZNEzf2GTX3Q
B20: Cells and Ranges
B21: 3.1 | C21: Merge and Center | D21: https://youtu.be/tBqnBrkqMxk
B22: 3.2 | C22: Formatting Cells | D22: https://youtu.be/zo0SsbmW9ow
B23: 3.3 | C23: Name Ranges | D23: https://youtu.be/tHDZrZX-I5o
B24: 3.4 | C24: Reference Formulas | D24: https://youtu.be/j__64J0s9k4
B25: 3.5 | C25: Styles and Headings | D25: https://youtu.be/nes1DUaA9Xs
B26: 3.6 | C26: Conditional Formatting | D26: https://youtu.be/5W8kOdkWzs8
B27: 3.7 | C27: Sparklines | D27: https://youtu.be/wNsk4mUUymE
B28: Tables
B29: 4.1 | C29: Creating a Table | D29: https://youtu.be/uivOZ5eaico
B30: 4.2 | C30: Remove Columns, Name Tables | D30: https://youtu.be/wOMfhh9PMMQ
B31: 4.3 | C31: Filter by Criteria | D31: https://youtu.be/Nih8g3tRMEc
B32: 4.4 | C32: Adding a Total Row | D32: https://youtu.be/AylEEIrop6g
B33: 4.5 | C33: Removing Table Functionality | D33: https://youtu.be/8I4UtIkMP1M
B34: Functions
B35: 5.1 | C35: Using the UPPER Function | D35: https://youtu.be/Skz4S2Gk_To
B36: 5.2 | C36: Using an Absolute Reference | D36: https://youtu.be/ipnPGPQ9lS4
B37: 5.3 | C37: Using the TEXTJOIN Function | D37: https://youtu.be/BF3TmkzNrVo
B38: 5.4 | C38: Using the IF Function | D38: https://youtu.be/ajlrX2IQ8eU
B39: 5.5 | C39: Using the AVERAGE Function | D39: https://youtu.be/zimny1mcyt0
B40: 5.6 | C40: Using the UNIQUE Function | D40: https://youtu.be/_kOMwDqlGnU
B41: Charting
B42: 6.1 | C42: Column Chart, Filters, Layouts | D42: https://youtu.be/NdvCTjbpJ-8
B43: 6.2 | C43: Chart Styles, Data Labels, Swap Data | D43: https://youtu.be/BHHmtCPwxm0
B44: 6.3 | C44: Charting, Add Data, Add Elements | D44: https://youtu.be/N0GVpN0UKQM
B45: 6.4 | C45: Add Trendline | D45: https://youtu.be/k1H0K74VqQY
B46: 6.5 | C46: Alt Text, Moving Charts | D46: https://youtu.be/X2F_g_f9y-w
B48: Add-ons
B49: *There are no excel sheets associated with these videos
C50: VLOOKUP | D50: https://youtu.be/fyrClf9wiO8
C51: XLOOKUP | D51: https://youtu.be/8IbtMXqR17c
C52: SORT | D52: https://youtu.be/KjkCg5FCHVQ
C53: FILTER | D53: https://youtu.be/4ZaMuU1jSjY
C54: INDEX MATCH | D54: https://youtu.be/VoW8j9KE0IA
C55: Data Validation | D55: https://youtu.be/E_DNvR5wMJU
B57: AI Tools | C57: These tools are not required. They are meant to aide your
C58: Claude canned prompts for Excel | D58: Excel formula expert - Anthropic
C59: Google AI assistant | D59: https://aistudio.google.com/live
C60: OpenAI ChatGPT tutor | D60: https://chatgpt.com/g/g-677ee4761d6481918eb96dd7f96be923-excel-associate-mo-210-tutor

Sheet Ch2-Instructions (Windows)
A1: Formulas
A2: Excel 365 Associate Exam
A3: Instructions
A5: For Internal Use Only
A7: Document Properties
A8: 1. Author: Enter your name
A9: 2. Title: Superstore Sales Report
A10: Video Link: | C10: =HYPERLINK(TOC!D11) -> https://youtu.be/y_P0jx7i5OI
A12: Inspect Workbook Options
A13: 1. Check for Accessibility issues. Enter alt text "Image of a Sales Report" to
A14: graphic, if needed.
A15: 2. Remove any hidden worksheets from the workbook.
A16: Video Link: | C16: =HYPERLINK(TOC!D12) -> https://youtu.be/5lFwXkr5ZwU
A18: Insert Notes and Comments
A19: 1. Insert a Note with the current street address that states,
A20: "Please update with new address".
A21: 2. Convert the Note to a Comment.
A22: 3. Change the Comment to be a Directed Comment to Joe (@joe).
A23: Video Link: | C23: =HYPERLINK(TOC!D13) -> https://youtu.be/4I1vbwlyq6U
A25: Page Layout
A26: 1. Set all Margins to 2.0".
A27: 2. Configure document to print Landscape.
A28: 3. Set the "Segment Sales Report" as a Print Area
A29: 4. Set the Repeat the column headings on each printed page.
A30: Video Link: | C30: =HYPERLINK(TOC!D14) -> https://youtu.be/j6vz-vUdSLU
A32: How to Show Formulas
A33: 1. Display formulas in the worksheet.
A34: Video Link: | C34: =HYPERLINK(TOC!D15) -> https://youtu.be/qjR8-mBmJiU
A36: Editing the Headers and Footers
A37: 1. Insert the current date as a right-aligned header.
A38: 2. Insert a footer that displays the worksheet name on the left,
A39: "Internal Use Only" in the center, and the page number on the right.
A40: Video Link: | C40: =HYPERLINK(TOC!D16) -> https://youtu.be/fufRvmuCUWM
A42: Quick Access Toolbar
A43: 1. Add Quick Print and New File to the Quick Access Toolbar.
A44: 2. Display the Quick Access Toolbar below the Ribbon.
A45: Video Link: | C45: =HYPERLINK(TOC!D17) -> https://youtu.be/g2vYGLQ032E
A47: Change Workbook Views
A48: 1. Change the View so you can see both the top and bottom of the worksheet.
A49: 2. Configure the worksheet to always display rows 1-9 and column B
A50: while scrolling.
A51: Video Link: | C51: =HYPERLINK(TOC!D18) -> https://youtu.be/dI4ElyluMsQ
A53: Import Data
A54: 1. In cell O9, insert the TXT file given to you called "Import _Data".
A55: Video Link: | C55: =HYPERLINK(TOC!D19) -> https://youtu.be/IZ4Q6hf40x0

Sheet Ch2-Sales_Report (Win)
B2: Superstore
B3: Segment Sales Report
B4: 123 56th Road
B5: San Diego, CA 22434
B6: (123) 456-7890
B7: For Internal Use Only
B9: Salesperson | C9: Date | D9: City | E9: Customer type | F9: Gender | G9: Product line | H9: Unit price | I9: Quantity | J9: Subtotal
B10: Joespeh Smith | C10: 2024-01-01 | D10: Yangon | E10: Normal | F10: Male | G10: Sports and travel | H10: 72.61 | I10: 6 | J10: =H10*I10 -> 435.66
B11: Joespeh Smith | C11: 2024-01-01 | D11: Yangon | E11: Member | F11: Male | G11: Home and lifestyle | H11: 47.59 | I11: 8 | J11: =H11*I11 -> 380.72
B12: Joespeh Smith | C12: 2024-01-01 | D12: Mandalay | E12: Normal | F12: Female | G12: Electronic accessories | H12: 74.71 | I12: 6 | J12: 448.26
B13: Joespeh Smith | C13: 2024-01-01 | D13: Naypyitaw | E13: Member | F13: Female | G13: Sports and travel | H13: 36.98 | I13: 10 | J13: 369.8
B14: Joespeh Smith | C14: 2024-01-01 | D14: Naypyitaw | E14: Normal | F14: Female | G14: Electronic accessories | H14: 63.22 | I14: 2 | J14: 126.44
B15: Joespeh Smith | C15: 2024-01-01 | D15: Naypyitaw | E15: Normal | F15: Male | G15: Health and beauty | H15: 62.87 | I15: 2 | J15: 125.74
B16: Abby Willison | C16: 2024-01-01 | D16: Yangon | E16: Normal | F16: Female | G16: Fashion accessories | H16: 65.74 | I16: 9 | J16: 591.66
B17: Abby Willison | C17: 2024-01-01 | D17: Yangon | E17: Member | F17: Female | G17: Sports and travel | H17: 27.04 | I17: 4 | J17: 108.16
B18: Abby Willison | C18: 2024-01-01 | D18: Yangon | E18: Member | F18: Female | G18: Electronic accessories | H18: 74.22 | I18: 10 | J18: 742.2
B19: Abby Willison | C19: 2024-01-01 | D19: Naypyitaw | E19: Member | F19: Female | G19: Sports and travel | H19: 29.22 | I19: 6 | J19: 175.32
B20: Abby Willison | C20: 2024-01-01 | D20: Mandalay | E20: Normal | F20: Male | G20: Food and beverages | H20: 21.12 | I20: 8 | J20: 168.96
B21: Joespeh Smith | C21: 2024-01-01 | D21: Mandalay | E21: Member | F21: Female | G21: Food and beverages | H21: 84.63 | I21: 10 | J21: 846.3
B22: Joespeh Smith | C22: 2024-01-02 | D22: Yangon | E22: Normal | F22: Male | G22: Sports and travel | H22: 42.47 | I22: 1 | J22: 42.47
B23: Joespeh Smith | C23: 2024-01-02 | D23: Naypyitaw | E23: Normal | F23: Male | G23: Fashion accessories | H23: 99.82 | I23: 2 | J23: 199.64
B24: Joespeh Smith | C24: 2024-01-02 | D24: Mandalay | E24: Normal | F24: Female | G24: Health and beauty | H24: 34.21 | I24: 10 | J24: 342.1
B25: Abby Willison | C25: 2024-01-02 | D25: Mandalay | E25: Member | F25: Male | G25: Fashion accessories | H25: 40.61 | I25: 9 | J25: 365.49
B26: Joespeh Smith | C26: 2024-01-02 | D26: Mandalay | E26: Normal | F26: Male | G26: Electronic accessories | H26: 22.01 | I26: 6 | J26: 132.06
B27: Joespeh Smith | C27: 2024-01-02 | D27: Yangon | E27: Member | F27: Male | G27: Food and beverages | H27: 41.66 | I27: 6 | J27: 249.96
B28: Joespeh Smith | C28: 2024-01-02 | D28: Naypyitaw | E28: Member | F28: Female | G28: Sports and travel | H28: 31.67 | I28: 8 | J28: 253.36
B29: Joespeh Smith | C29: 2024-01-02 | D29: Mandalay | E29: Normal | F29: Male | G29: Sports and travel | H29: 44.63 | I29: 6 | J29: 267.78

Sheet Hidden 1 (hidden)
A1: This is hidden worksheet 1

Sheet Hidden 2 (hidden)
A1: This is hidden worksheet 1

Sheet Ch2-Instructions (Mac)
A1: Formulas
A2: Excel 365 Associate Exam
A3: Instructions
A5: For Internal Use Only
A7: Document Properties
A8: 1. Author: Enter your name
A9: 2. Title: Superstore Sales Report
A10: Video Link: | C10: =HYPERLINK(TOC!H11) -> https://youtu.be/fkEVrfKVti8
A12: Inspect Workbook Options
A13: 1. Check for Accessibility issues. Enter alt text "Image of a Sales Report" to
A14: graphic, if needed.
A15: 2. Remove any hidden worksheets from the workbook.
A16: Video Link: | C16: =HYPERLINK(TOC!H12) -> https://youtu.be/oLOJz7XnnGk
A18: Insert Notes and Comments
A19: 1. Insert a Note with the current street address that states,
A20: "Please update with new address".
A21: 2. Convert the Note to a Comment.
A22: 3. Change the Comment to be a Directed Comment to Joe (@joe).
A23: Video Link: | C23: =HYPERLINK(TOC!H13) -> https://youtu.be/oiKLrvnoPDs
A25: Page Layout
A26: 1. Set all Margins to 2.0".
A27: 2. Configure document to print Landscape.
A28: 3. Set the "Segment Sales Report" as a Print Area
A29: 4. Set the Repeat the column headings on each printed page.
A30: Video Link: | C30: =HYPERLINK(TOC!H14) -> https://youtu.be/RfSEhfGBH4c
A32: How to Show Formulas
A33: 1. Display formulas in the worksheet.
A34: Video Link: | C34: =HYPERLINK(TOC!H15) -> https://youtu.be/O5u8ZxOgyHs
A36: Editing the Headers and Footers
A37: 1. Insert the current date as a right-aligned header.
A38: 2. Insert a footer that displays the worksheet name on the left,
A39: "Internal Use Only" in the center, and the page number on the right.
A40: Video Link: | C40: =HYPERLINK(TOC!H16) -> https://youtu.be/DdYwCWCCbiY
A42: Quick Access Toolbar
A43: 1. Add Quick Print and New File to the Quick Access Toolbar.
A44: 2. Display the Quick Access Toolbar below the Ribbon.
A45: Video Link: | C45: =HYPERLINK(TOC!H18) -> https://youtu.be/yqF-rp5AD5I
A47: Change Workbook Views
A48: 1. Change the View so you can see both the top and bottom of the worksheet.
A49: 2. Configure the worksheet to always display rows 1-9 and column B
A50: while scrolling.
A51: Video Link: | C51: =HYPERLINK(TOC!H18) -> https://youtu.be/yqF-rp5AD5I
A53: Import Data
A54: 1. In cell O9, insert the TXT file given to you called "Import _Data".
A55: Video Link: | C55: =HYPERLINK(TOC!H19) -> https://youtu.be/ZNEzf2GTX3Q

Sheet Ch2-Sales_Report (Mac)
B2: Superstore
B3: Segment Sales Report
B4: 123 56th Road
B5: San Diego, CA 22434
B6: (123) 456-7890
B7: For Internal Use Only
B9: Salesperson | C9: Date | D9: City | E9: Customer type | F9: Gender | G9: Product line | H9: Unit price | I9: Quantity | J9: Subtotal
B10: Joespeh Smith | C10: 2024-01-01 | D10: Yangon | E10: Normal | F10: Male | G10: Sports and travel | H10: 72.61 | I10: 6 | J10: =H10*I10 -> 435.66
B11: Joespeh Smith | C11: 2024-01-01 | D11: Yangon | E11: Member | F11: Male | G11: Home and lifestyle | H11: 47.59 | I11: 8 | J11: =H11*I11 -> 380.72
B12: Joespeh Smith | C12: 2024-01-01 | D12: Mandalay | E12: Normal | F12: Female | G12: Electronic accessories | H12: 74.71 | I12: 6 | J12: 448.26
B13: Joespeh Smith | C13: 2024-01-01 | D13: Naypyitaw | E13: Member | F13: Female | G13: Sports and travel | H13: 36.98 | I13: 10 | J13: 369.8
B14: Joespeh Smith | C14: 2024-01-01 | D14: Naypyitaw | E14: Normal | F14: Female | G14: Electronic accessories | H14: 63.22 | I14: 2 | J14: 126.44
B15: Joespeh Smith | C15: 2024-01-01 | D15: Naypyitaw | E15: Normal | F15: Male | G15: Health and beauty | H15: 62.87 | I15: 2 | J15: 125.74
B16: Abby Willison | C16: 2024-01-01 | D16: Yangon | E16: Normal | F16: Female | G16: Fashion accessories | H16: 65.74 | I16: 9 | J16: 591.66
B17: Abby Willison | C17: 2024-01-01 | D17: Yangon | E17: Member | F17: Female | G17: Sports and travel | H17: 27.04 | I17: 4 | J17: 108.16
B18: Abby Willison | C18: 2024-01-01 | D18: Yangon | E18: Member | F18: Female | G18: Electronic accessories | H18: 74.22 | I18: 10 | J18: 742.2
B19: Abby Willison | C19: 2024-01-01 | D19: Naypyitaw | E19: Member | F19: Female | G19: Sports and travel | H19: 29.22 | I19: 6 | J19: 175.32
B20: Abby Willison | C20: 2024-01-01 | D20: Mandalay | E20: Normal | F20: Male | G20: Food and beverages | H20: 21.12 | I20: 8 | J20: 168.96
B21: Joespeh Smith | C21: 2024-01-01 | D21: Mandalay | E21: Member | F21: Female | G21: Food and beverages | H21: 84.63 | I21: 10 | J21: 846.3
B22: Joespeh Smith | C22: 2024-01-02 | D22: Yangon | E22: Normal | F22: Male | G22: Sports and travel | H22: 42.47 | I22: 1 | J22: 42.47
B23: Joespeh Smith | C23: 2024-01-02 | D23: Naypyitaw | E23: Normal | F23: Male | G23: Fashion accessories | H23: 99.82 | I23: 2 | J23: 199.64
B24: Joespeh Smith | C24: 2024-01-02 | D24: Mandalay | E24: Normal | F24: Female | G24: Health and beauty | H24: 34.21 | I24: 10 | J24: 342.1
B25: Abby Willison | C25: 2024-01-02 | D25: Mandalay | E25: Member | F25: Male | G25: Fashion accessories | H25: 40.61 | I25: 9 | J25: 365.49
B26: Joespeh Smith | C26: 2024-01-02 | D26: Mandalay | E26: Normal | F26: Male | G26: Electronic accessories | H26: 22.01 | I26: 6 | J26: 132.06
B27: Joespeh Smith | C27: 2024-01-02 | D27: Yangon | E27: Member | F27: Male | G27: Food and beverages | H27: 41.66 | I27: 6 | J27: 249.96
B28: Joespeh Smith | C28: 2024-01-02 | D28: Naypyitaw | E28: Member | F28: Female | G28: Sports and travel | H28: 31.67 | I28: 8 | J28: 253.36
B29: Joespeh Smith | C29: 2024-01-02 | D29: Mandalay | E29: Normal | F29: Male | G29: Sports and travel | H29: 44.63 | I29: 6 | J29: 267.78

Sheet Ch3-Instructions
A1: Named Ranges and Formatting
A2: Excel 365 Associate Exam
A3: Instructions
A6: Merge
A7: 1. Select the cells E1:L1
A8: 2. Click the Merge & Center button under the Alignment section
A9: Alternatively:
A10: 1. Select cells E2:L2
A11: 2. Type Ctrl+1
A12: 3. Select the alignment tab
A13: 4. Under the horizontal dropdown, select "Center Across Selection"
A14: 5. Click OK
A15: Video Link: | C15: =HYPERLINK(TOC!D21) -> https://youtu.be/tBqnBrkqMxk
A17: Format Cells
A18: 1. Select the data for January through December (D11:O16)
A19: 2. Under the Number menu, click the drop down at the top and select Currency
A20: 3. Under the Font section click the drop down for Boarders and click more Boarders
A21: 4. Click the drop-down menu for Color and select Green
A22: 5. Click the Outline and Inside buttons under Presets
A23: 6. Click OK
A24: Video Link: | C24: =HYPERLINK(TOC!D22) -> https://youtu.be/zo0SsbmW9ow
A26: Named Range
A27: 1. Select all the sales under January (D11:D17)
A28: 2. Click the Name Box in the top left and type “January_Sales”
A29: 3. Hit enter
A30: 4. Select all the sales for Electronic Accessories D11:O11
A31: 5. Click the Name Box on the left-hand side and type “Electronic_Accessories”
A32: 6. Hit enter
A33: To check your named ranges:
A34: 1. Under the formulas tab on the ribbon, click "Name Manager" in the Defined Names menu
A35: 2. You can view all named ranges here
A36: Video Link: | C36: =HYPERLINK(TOC!D23) -> https://youtu.be/tHDZrZX-I5o
A38: Reference Formula
A39: 1. Select all grand total sales (D17:O17)
A40: 2. Right click on any of the selected cells
A41: 3. Select "Clear Contents"
A42: 4. Click in cell D17
A43: 5. Type =sum and tab to step into the function
A44: 6. Type January_Sales and tab to step into the function
A45: 7. Close your parenthesis and hit enter
A46: *Complete formula will look like this =SUM(January_Sales)*
A47: 8. In cell F11 type "=sum" and tab to enter the function
A48: 9. Type "Electronic_Sales" and tab
A49: 10. Close parathesis and hit enter
A50: *Complete formula will look like this =SUM(Electronic_Sales)*
A51: Video Link: | C51: =HYPERLINK(TOC!D24) -> https://youtu.be/j__64J0s9k4
A53: Change Column Width
A54: 1. Highlight cells C10:C17
A55: 2. Click Wrap Text under the Alignment group in the Home tab
A56: Video Link: | C56: =HYPERLINK(TOC!D25) -> https://youtu.be/nes1DUaA9Xs
A59: Heading Styles
A60: 1. Select all product names (C10:C17)
A61: 2. Click Cell Styles under the Styles section
A62: 3. Select Heading 4 under the Titles and Headings section
A63: Video Link: | C63: =HYPERLINK(TOC!D25) -> https://youtu.be/nes1DUaA9Xs
A66: Display Top Amounts
A67: 1. Select all January Sales or use the named range January_Sales
A68: 2. Under the Cell Styles section click Conditional Formatting
A69: 3. Click Top/Bottom Rules
A70: 4. Click Top 10 Items...
A71: 5. Change 10 to 3
A72: 6. Change to Red Text
A73: 7. Click OK
A74: Video Link: | C74: =HYPERLINK(TOC!D26) -> https://youtu.be/5W8kOdkWzs8
A77: Line Graph
A78: 1. Click in P11
A79: 2. Click the Insert tab in the ribbon
A80: 3. Click Line under the Sparklines section
A81: 4.Type "Electronic_accessories" to use as the Data Range or select cells D11:O11
A82: 5. Click OK
A83: Video Link: | C83: =HYPERLINK(C89:E89) -> https://youtu.be/wNsk4mUUymE
A86: Remove Row
A87: 1. Click on Row 3
A88: 2. Right click and select delete or select row and type Ctrl-
A89: Video Link: | C89: =HYPERLINK(TOC!D27) -> https://youtu.be/wNsk4mUUymE
A92: When you have completed all tasks, please save and close the workbook

Sheet Ch3-Sales_Report
E1: Superstore
E2: Segment Sales Report
E3: 123 56th Road
E4: San Diego, CA 22434
E5: (123)-456-7890
E6: For Internal Use Only
C9: Sum of Gross Profit | D9: Q1 | G9: Q2 | J9: Q3 | M9: Q4
C10: Product Line | D10: January | E10: February | F10: March | G10: April | H10: May | I10: June | J10: July | K10: August | L10: September | M10: October | N10: November | O10: December
C11: Electronic accessories | D11: 896.728 | E11: 826.805 | F11: 863.9685 | G11: 1650.591075 | H11: 2785.615875 | I11: 2476.98675 | J11: 2054.164875 | K11: 2791.871775 | L11: 2193.177 | M11: 1739.8437 | N11: 2398.4541 | O11: 2446.95465
C12: Fashion accessories | D12: 921.196 | E12: 905.2315 | F12: 759.5675 | G12: 1883.34405 | H12: 2464.11375 | I12: 2585.340975 | J12: 2082.23085 | K12: 2712.613575 | L12: 2228.88435 | M12: 2397.334275 | N12: 3161.14995 | O12: 1941.278325
C13: Food and beverages | D13: 931.93 | E13: 952.398 | F13: 789.236 | G13: 1944.881925 | H13: 2883.76305 | I13: 2527.931175 | J13: 2630.000625 | K13: 2264.830575 | L13: 1971.131925 | M13: 2142.23625 | N13: 2340.416925 | O13: 2104.6284
C14: Health and beauty | D14: 780.151 | E14: 695.3455 | F14: 867.0625 | G14: 1639.3419 | H14: 2155.841625 | I14: 2461.388475 | J14: 2012.135475 | K14: 1812.401325 | L14: 2166.7947 | M14: 2176.834275 | N14: 1960.369425 | O14: 1752.358125
C15: Home and lifestyle | D15: 975.94 | E15: 592.1135 | F15: 996.7995 | G15: 1821.01605 | H15: 1719.04215 | I15: 2595.6504 | J15: 2306.9697 | K15: 1712.406675 | L15: 2803.41285 | M15: 2355.0912 | N15: 1411.911375 | O15: 2424.98235
C16: Sports and travel | D16: 1031.763 | E16: 657.6005 | F16: 935.533 | G16: 2019.395175 | H16: 2154.729675 | I16: 2197.462575 | J16: 2447.0922 | K16: 1841.7714 | L16: 1938.195 | M16: 3159.46785 | N16: 2207.443875 | O16: 1722.616875
C17: Grand Total

Sheet Ch4-Instructions
A1: Tables
A2: Excel 365 Associate Exam
A3: Instructions
A5: For Internal Use Only
A7: Create a Table
A8: 1. Click in A9 use the keyboard short CTRL + SHIFT Right Arrow then Down Arrow (the whole range should be A9:Q40)
A9: 2. Click the Insert tab in the ribbon
A10: 3. Click Table under the Tables section *Could also use CTRL+T*
A11: 4. Make sure My table has headers is checked
A12: 5. Click OK
A13: Video Link: | C13: =HYPERLINK(TOC!D29) -> https://youtu.be/uivOZ5eaico
A15: Table Styles
A16: 1. Click in any cell on the Table
A17: 2. Click Table Design tab in the ribbon
A18: 3. Click the drop-down under the Table Styles section
A19: 4. Click the Light Green Table Style Light 14
A20: Video Link: | C20: =HYPERLINK(C13) -> https://youtu.be/uivOZ5eaico
A22: Remove Columns
A23: 1. Click Column Q
A24: 2. Right click and click delete
A25: Video Link: | C25: =HYPERLINK(TOC!D30) -> https://youtu.be/wOMfhh9PMMQ
A27: Name a Table
A28: 1. Click in any cell on the Table
A29: 2. Click Table Design tab at the top
A30: 3. Under the Properties section type “Sales_Report” in the Table Name box
A31: Video Link: | C31: =HYPERLINK(TOC!D30) -> https://youtu.be/wOMfhh9PMMQ
A33: Display Lowest to Highest
A34: 1. Click the drop-down menu under "Gross Profit" (Column P)
A35: 2. Click Sort Smallest to Largest
A36: Video Link: | C36: =HYPERLINK(C31) -> https://youtu.be/wOMfhh9PMMQ
A38: Add a Total Row
A39: 1. Click any cell in the table
A40: 2. In the Table Design Tab, check off the box lablled "total row"
A43: Display by Criteria
A44: 1. Click the drop-down menu under Payment
A45: 2. Click (Select All) to deselect all the selections
A46: 3. Check off Cash and Ewallet
A47: 4. Click OK
A48: 5. Click in any cell on the Table
A49: 6. Click Table Design tab at the top
A50: 7. Under the Table Style Options and check off Total Row
A51: 8. At the bottom cell under Gross Profit click the drop down menu in cell P40
A52: 9. Click Average
A53: Video Link: | C53: =HYPERLINK(TOC!D31) -> https://youtu.be/Nih8g3tRMEc
A55: Remove Table Functionality but Retain All Formatting
A56: 1. Click in any cell on the Table
A57: 2. Click Table Design tab in the ribbon
A58: 3. Click Convert to Range under the Tools section
A59: 4. Click Yes
A60: Video Link: | C60: =HYPERLINK(TOC!D33) -> https://youtu.be/8I4UtIkMP1M

Sheet Ch4-Sales Data
C1: Superstore
C2: Sales Report
C3: 123 56th Road
C4: San Diego, CA 22434
C5: (123) 456-7890
C6: For Internal Use Only
A9: Date | B9: Time | C9: Invoice ID | D9: Payment | E9: Branch | F9: City | G9: Customer type | H9: Gender | I9: Product line | J9: Unit price | K9: Quantity | L9: Subtotal | M9: Tax 5% | N9: Total | O9: COGS | P9: Gross Profit | Q9: Rating | Y9: 0.05
A10: 2024-01-05 | B10: 13:08:00 | C10: 750-67-8428 | D10: Ewallet | E10: A | F10: Yangon | G10: Member | H10: Female | I10: Health and beauty | J10: 74.69 | K10: 7 | L10: 522.83 | M10: 26.14 | N10: 548.97 | O10: =N10*((RIGHT(User_Info!$C$3,2)*0.01)) -> 301.9335 | P10: 26.14 | Q10: 9.1
A11: 2024-03-08 | B11: 10:29:00 | C11: 226-31-3081 | D11: Cash | E11: C | F11: Naypyitaw | G11: Normal | H11: Female | I11: Electronic accessories | J11: 15.28 | K11: 5 | L11: 76.4 | M11: 3.82 | N11: 80.22 | O11: =N11*((RIGHT(User_Info!$C$3,2)*0.01)) -> 44.121 | P11: 3.82 | Q11: 9.6
A12: 2024-03-03 | B12: 13:23:00 | C12: 631-41-3108 | D12: Credit card | E12: A | F12: Yangon | G12: Normal | H12: Male | I12: Home and lifestyle | J12: 46.33 | K12: 7 | L12: 324.31 | M12: 16.22 | N12: 340.53 | O12: =N12*((RIGHT(User_Info!$C$3,2)*0.01)) -> 187.2915 | P12: 16.22 | Q12: 7.4
A13: 2024-01-27 | B13: 20:33:00 | C13: 123-19-1176 | D13: Ewallet | E13: A | F13: Yangon | G13: Member | H13: Male | I13: Health and beauty | J13: 58.22 | K13: 8 | L13: 465.76 | M13: 23.29 | N13: 489.05 | O13: =N13*((RIGHT(User_Info!$C$3,2)*0.01)) -> 268.9775 | P13: 23.29 | Q13: 8.4
A14: 2024-02-08 | B14: 10:37:00 | C14: 373-73-7910 | D14: Ewallet | E14: A | F14: Yangon | G14: Normal | H14: Male | I14: Sports and travel | J14: 86.31 | K14: 7 | L14: 604.17 | M14: 30.21 | N14: 634.38 | O14: =N14*((RIGHT(User_Info!$C$3,2)*0.01)) -> 348.909 | P14: 30.21 | Q14: 5.3
A15: 2024-03-25 | B15: 18:30:00 | C15: 699-14-3026 | D15: Ewallet | E15: C | F15: Naypyitaw | G15: Normal | H15: Male | I15: Electronic accessories | J15: 85.39 | K15: 7 | L15: 597.73 | M15: 29.89 | N15: 627.62 | O15: =N15*((RIGHT(User_Info!$C$3,2)*0.01)) -> 345.191 | P15: 29.89 | Q15: 4.1
A16: 2024-02-25 | B16: 14:36:00 | C16: 355-53-5943 | D16: Ewallet | E16: A | F16: Yangon | G16: Member | H16: Female | I16: Electronic accessories | J16: 68.84 | K16: 6 | L16: 413.04 | M16: 20.65 | N16: 433.69 | O16: =N16*((RIGHT(User_Info!$C$3,2)*0.01)) -> 238.5295 | P16: 20.65 | Q16: 5.8
A17: 2024-02-24 | B17: 11:38:00 | C17: 315-22-5665 | D17: Ewallet | E17: C | F17: Naypyitaw | G17: Normal | H17: Female | I17: Home and lifestyle | J17: 73.56 | K17: 10 | L17: 735.6 | M17: 36.78 | N17: 772.38 | O17: =N17*((RIGHT(User_Info!$C$3,2)*0.01)) -> 424.809 | P17: 36.78 | Q17: 8
A18: 2024-01-10 | B18: 17:15:00 | C18: 665-32-9167 | D18: Credit card | E18: A | F18: Yangon | G18: Member | H18: Female | I18: Health and beauty | J18: 36.26 | K18: 2 | L18: 72.52 | M18: 3.63 | N18: 76.15 | O18: =N18*((RIGHT(User_Info!$C$3,2)*0.01)) -> 41.8825 | P18: 3.63 | Q18: 7.2
A19: 2024-02-20 | B19: 13:27:00 | C19: 692-92-5582 | D19: Credit card | E19: B | F19: Mandalay | G19: Member | H19: Female | I19: Food and beverages | J19: 54.84 | K19: 3 | L19: 164.52 | M19: 8.23 | N19: 172.75 | O19: =N19*((RIGHT(User_Info!$C$3,2)*0.01)) -> 95.0125 | P19: 8.23 | Q19: 5.9
A20: 2024-02-06 | B20: 18:07:00 | C20: 351-62-0822 | D20: Ewallet | E20: B | F20: Mandalay | G20: Member | H20: Female | I20: Fashion accessories | J20: 14.48 | K20: 4 | L20: 57.92 | M20: 2.9 | N20: 60.82 | O20: =N20*((RIGHT(User_Info!$C$3,2)*0.01)) -> 33.451 | P20: 2.9 | Q20: 4.5
A21: 2024-03-09 | B21: 17:03:00 | C21: 529-56-3974 | D21: Cash | E21: B | F21: Mandalay | G21: Member | H21: Male | I21: Electronic accessories | J21: 25.51 | K21: 4 | L21: 102.04 | M21: 5.1 | N21: 107.14 | O21: =N21*((RIGHT(User_Info!$C$3,2)*0.01)) -> 58.927 | P21: 5.1 | Q21: 6.8
A22: 2024-02-12 | B22: 10:25:00 | C22: 365-64-0515 | D22: Ewallet | E22: A | F22: Yangon | G22: Normal | H22: Female | I22: Electronic accessories | J22: 46.95 | K22: 5 | L22: 234.75 | M22: 11.74 | N22: 246.49 | O22: =N22*((RIGHT(User_Info!$C$3,2)*0.01)) -> 135.5695 | P22: 11.74 | Q22: 7.1
A23: 2024-02-07 | B23: 16:48:00 | C23: 252-56-2699 | D23: Ewallet | E23: A | F23: Yangon | G23: Normal | H23: Male | I23: Food and beverages | J23: 43.19 | K23: 10 | L23: 431.9 | M23: 21.6 | N23: 453.5 | O23: =N23*((RIGHT(User_Info!$C$3,2)*0.01)) -> 249.425 | P23: 21.6 | Q23: 8.2
A24: 2024-03-29 | B24: 19:21:00 | C24: 829-34-3910 | D24: Cash | E24: A | F24: Yangon | G24: Normal | H24: Female | I24: Health and beauty | J24: 71.38 | K24: 10 | L24: 713.8 | M24: 35.69 | N24: 749.49 | O24: =N24*((RIGHT(User_Info!$C$3,2)*0.01)) -> 412.2195 | P24: 35.69 | Q24: 5.7
A25: 2024-01-15 | B25: 16:19:00 | C25: 299-46-1805 | D25: Cash | E25: B | F25: Mandalay | G25: Member | H25: Female | I25: Sports and travel | J25: 93.72 | K25: 6 | L25: 562.32 | M25: 28.12 | N25: 590.44 | O25: =N25*((RIGHT(User_Info!$C$3,2)*0.01)) -> 324.742 | P25: 28.12 | Q25: 4.5
A26: 2024-03-11 | B26: 11:03:00 | C26: 656-95-9349 | D26: Credit card | E26: A | F26: Yangon | G26: Member | H26: Female | I26: Health and beauty | J26: 68.93 | K26: 7 | L26: 482.51 | M26: 24.13 | N26: 506.64 | O26: =N26*((RIGHT(User_Info!$C$3,2)*0.01)) -> 278.652 | P26: 24.13 | Q26: 4.6
A27: 2024-01-01 | B27: 10:39:00 | C27: 765-26-6951 | D27: Credit card | E27: A | F27: Yangon | G27: Normal | H27: Male | I27: Sports and travel | J27: 72.61 | K27: 6 | L27: 435.66 | M27: 21.78 | N27: 457.44 | O27: =N27*((RIGHT(User_Info!$C$3,2)*0.01)) -> 251.592 | P27: 21.78 | Q27: 6.9
A28: 2024-01-21 | B28: 18:00:00 | C28: 329-62-1586 | D28: Credit card | E28: A | F28: Yangon | G28: Normal | H28: Male | I28: Food and beverages | J28: 54.67 | K28: 3 | L28: 164.01 | M28: 8.2 | N28: 172.21 | O28: =N28*((RIGHT(User_Info!$C$3,2)*0.01)) -> 94.7155 | P28: 8.2 | Q28: 8.6
A29: 2024-03-11 | B29: 15:30:00 | C29: 319-50-3348 | D29: Ewallet | E29: B | F29: Mandalay | G29: Normal | H29: Female | I29: Home and lifestyle | J29: 40.3 | K29: 2 | L29: 80.6 | M29: 4.03 | N29: 84.63 | O29: =N29*((RIGHT(User_Info!$C$3,2)*0.01)) -> 46.5465 | P29: 4.03 | Q29: 4.4
A30: 2024-02-25 | B30: 11:24:00 | C30: 300-71-4605 | D30: Ewallet | E30: C | F30: Naypyitaw | G30: Member | H30: Male | I30: Electronic accessories | J30: 86.04 | K30: 5 | L30: 430.2 | M30: 21.51 | N30: 451.71 | O30: =N30*((RIGHT(User_Info!$C$3,2)*0.01)) -> 248.4405 | P30: 21.51 | Q30: 4.8
A31: 2024-03-05 | B31: 10:40:00 | C31: 371-85-5789 | D31: Ewallet | E31: B | F31: Mandalay | G31: Normal | H31: Male | I31: Health and beauty | J31: 87.98 | K31: 3 | L31: 263.94 | M31: 13.2 | N31: 277.14 | O31: =N31*((RIGHT(User_Info!$C$3,2)*0.01)) -> 152.427 | P31: 13.2 | Q31: 5.1
A32: 2024-03-15 | B32: 12:20:00 | C32: 273-16-6619 | D32: Credit card | E32: B | F32: Mandalay | G32: Normal | H32: Male | I32: Home and lifestyle | J32: 33.2 | K32: 2 | L32: 66.4 | M32: 3.32 | N32: 69.72 | O32: =N32*((RIGHT(User_Info!$C$3,2)*0.01)) -> 38.346 | P32: 3.32 | Q32: 4.4
A33: 2024-02-17 | B33: 11:15:00 | C33: 636-48-8204 | D33: Ewallet | E33: A | F33: Yangon | G33: Normal | H33: Male | I33: Electronic accessories | J33: 34.56 | K33: 5 | L33: 172.8 | M33: 8.64 | N33: 181.44 | O33: =N33*((RIGHT(User_Info!$C$3,2)*0.01)) -> 99.792 | P33: 8.64 | Q33: 9.9
A34: 2024-03-02 | B34: 17:36:00 | C34: 549-59-1358 | D34: Ewallet | E34: A | F34: Yangon | G34: Member | H34: Male | I34: Sports and travel | J34: 88.63 | K34: 3 | L34: 265.89 | M34: 13.29 | N34: 279.18 | O34: =N34*((RIGHT(User_Info!$C$3,2)*0.01)) -> 153.549 | P34: 13.29 | Q34: 6
A35: 2024-03-22 | B35: 19:20:00 | C35: 227-03-5010 | D35: Credit card | E35: A | F35: Yangon | G35: Member | H35: Female | I35: Home and lifestyle | J35: 52.59 | K35: 8 | L35: 420.72 | M35: 21.04 | N35: 441.76 | O35: =N35*((RIGHT(User_Info!$C$3,2)*0.01)) -> 242.968 | P35: 21.04 | Q35: 8.5
A36: 2024-02-08 | B36: 15:31:00 | C36: 649-29-6775 | D36: Cash | E36: B | F36: Mandalay | G36: Normal | H36: Male | I36: Fashion accessories | J36: 33.52 | K36: 1 | L36: 33.52 | M36: 1.68 | N36: 35.2 | O36: =N36*((RIGHT(User_Info!$C$3,2)*0.01)) -> 19.36 | P36: 1.68 | Q36: 6.7
A37: 2024-03-10 | B37: 12:17:00 | C37: 189-17-4241 | D37: Credit card | E37: A | F37: Yangon | G37: Normal | H37: Female | I37: Fashion accessories | J37: 87.67 | K37: 2 | L37: 175.34 | M37: 8.77 | N37: 184.11 | O37: =N37*((RIGHT(User_Info!$C$3,2)*0.01)) -> 101.2605 | P37: 8.77 | Q37: 7.7
A38: 2024-01-25 | B38: 19:48:00 | C38: 145-94-9061 | D38: Cash | E38: B | F38: Mandalay | G38: Normal | H38: Female | I38: Food and beverages | J38: 88.36 | K38: 5 | L38: 441.8 | M38: 22.09 | N38: 463.89 | O38: =N38*((RIGHT(User_Info!$C$3,2)*0.01)) -> 255.1395 | P38: 22.09 | Q38: 9.6
A39: 2024-03-15 | B39: 15:36:00 | C39: 848-62-7243 | D39: Cash | E39: A | F39: Yangon | G39: Normal | H39: Male | I39: Health and beauty | J39: 24.89 | K39: 9 | L39: 224.01 | M39: 11.2 | N39: 235.21 | O39: =N39*((RIGHT(User_Info!$C$3,2)*0.01)) -> 129.3655 | P39: 11.2 | Q39: 7.4

Sheet Ch5-Instructions
A1: Formulas
A2: Excel 365 Associate Exam
A3: Instructions
A5: For Internal Use Only
A7: Using the UPPER Function
A8: 1. Beginning in cell O11, format all Cities in all capital letters.
A9: 2. Replace the current City data with the newly formatted data.
A11: Video Link: | C11: =HYPERLINK(TOC!D35) -> https://youtu.be/Skz4S2Gk_To
A13: Using an Absolute Reference
A14: 1. Beginning in cell L11, calculate the Sales Tax for each Order.
A15: 2. Beginning in cell M11, calculate the Order Amount and Tax for each Order.
A16: Video Link: | C16: =HYPERLINK(TOC!D36) -> https://youtu.be/ipnPGPQ9lS4
A18: Using the TEXTJOIN Function
A19: 1. Beginning in cell G11, join the City, followed by a hyphen (-) and the
A20: Customer number for all Customers.
A21: Video Link: | C21: =HYPERLINK(TOC!D37) -> https://youtu.be/BF3TmkzNrVo
A23: Using the IF Function
A24: 1. Beginning in cell K11, display "Yes" if the employee has Medical for benefits,
A25: otherwise display "No".
A26: Video Link: | C26: =HYPERLINK(TOC!D38) -> https://youtu.be/ajlrX2IQ8eU
A28: Using the AVERAGE Function
A29: 1. In cell O10, determine the average Benefit Cost for all Employees.
A30: Video Link: | C30: =HYPERLINK(TOC!D39) -> https://youtu.be/zimny1mcyt0
A32: Using the UNIQUE Function
A33: 1. Beginning in Q11, create a list of Departments, listing each Department only once.
A34: Video Link: | C34: =HYPERLINK(TOC!D40) -> https://youtu.be/_kOMwDqlGnU

Sheet Ch5-Sales Report
B2: Superstore
B3: Segment Sales Report
B4: 123 56th Road
B5: San Diego, CA 22434
B6: (123) 456-7890
B7: For Internal Use Only
B9: Superstore Internet Orders for Q1 | L9: Sales Tax | M9: 0.06
B10: Order Date | C10: Invoice ID | D10: City | E10: Payment Type | F10: Customer # | G10: City and Customer # | H10: Product line | I10: Unit Price | J10: Quantity | K10: Order Amount | L10: Tax | M10: Total Order Amount
B11: 2024-03-09 | C11: 219-22-9386 | D11: MANDALAY | E11: Credit card | F11: YXT989 | H11: Sports and travel | I11: 99.96 | J11: 9 | K11: =I11*J11 -> 899.64
B12: 2024-03-13 | C12: 336-78-2147 | D12: NAYPYITAW | E12: Credit card | F12: YMD139 | H12: Home and lifestyle | I12: 63.91 | J12: 8 | K12: 511.28
B13: 2024-03-09 | C13: 268-27-6179 | D13: MANDALAY | E13: Ewallet | F13: RRK660 | H13: Fashion accessories | I13: 56.47 | J13: 8 | K13: 451.76
B14: 2024-03-10 | C14: 668-90-8900 | D14: YANGON | E14: Credit card | F14: LBZ036 | H14: Home and lifestyle | I14: 93.69 | J14: 7 | K14: 655.83
B15: 2024-01-27 | C15: 870-54-3162 | D15: YANGON | E15: Cash | F15: XQR615 | H15: Sports and travel | I15: 32.25 | J15: 5 | K15: 161.25
B16: 2024-01-08 | C16: 189-08-9157 | D16: NAYPYITAW | E16: Credit card | F16: RBZ029 | H16: Fashion accessories | I16: 31.73 | J16: 9 | K16: 285.57
B17: 2024-01-08 | C17: 663-86-9076 | D17: NAYPYITAW | E17: Ewallet | F17: FWF661 | H17: Food and beverages | I17: 68.54 | J17: 8 | K17: 548.32
B18: 2024-02-08 | C18: 549-84-7482 | D18: MANDALAY | E18: Ewallet | F18: EQE183 | H18: Sports and travel | I18: 90.28 | J18: 9 | K18: 812.52
B19: 2024-01-25 | C19: 191-10-6171 | D19: MANDALAY | E19: Cash | F19: UDL363 | H19: Fashion accessories | I19: 39.62 | J19: 7 | K19: 277.34
B20: 2024-03-06 | C20: 802-70-5316 | D20: YANGON | E20: Cash | F20: JGS356 | H20: Sports and travel | I20: 92.13 | J20: 6 | K20: 552.78
B21: 2024-02-10 | C21: 695-51-0018 | D21: MANDALAY | E21: Cash | F21: JZS431 | H21: Sports and travel | I21: 34.84 | J21: 4 | K21: 139.36
B22: 2024-02-17 | C22: 590-83-4591 | D22: MANDALAY | E22: Credit card | F22: VIW105 | H22: Electronic accessories | I22: 87.45 | J22: 6 | K22: 524.7
B23: 2024-03-08 | C23: 483-71-1164 | D23: NAYPYITAW | E23: Ewallet | F23: JRK776 | H23: Health and beauty | I23: 81.3 | J23: 6 | K23: 487.8
B24: 2024-02-18 | C24: 597-78-7908 | D24: NAYPYITAW | E24: Cash | F24: GKA523 | H24: Fashion accessories | I24: 90.22 | J24: 3 | K24: 270.66
B25: 2024-01-18 | C25: 700-81-1757 | D25: YANGON | E25: Credit card | F25: ENA016 | H25: Electronic accessories | I25: 26.31 | J25: 5 | K25: 131.55
B26: 2024-02-18 | C26: 354-39-5160 | D26: YANGON | E26: Cash | F26: HHU346 | H26: Home and lifestyle | I26: 34.42 | J26: 6 | K26: 206.52
B27: 2024-02-16 | C27: 241-72-9525 | D27: MANDALAY | E27: Cash | F27: WPL902 | H27: Sports and travel | I27: 51.91 | J27: 10 | K27: 519.1
B28: 2024-03-16 | C28: 575-30-8091 | D28: YANGON | E28: Ewallet | F28: AYL922 | H28: Sports and travel | I28: 72.5 | J28: 8 | K28: 580
B29: 2024-01-23 | C29: 731-81-9469 | D29: NAYPYITAW | E29: Credit card | F29: EPD316 | H29: Sports and travel | I29: 89.8 | J29: 10 | K29: 898
B30: 2024-01-25 | C30: 280-17-4359 | D30: NAYPYITAW | E30: Cash | F30: FRO952 | H30: Health and beauty | I30: 90.5 | J30: 10 | K30: 905

Sheet Ch5-Payroll Data
B2: Superstore
B3: Segment Sales Report
B4: 123 56th Road
B5: San Diego, CA 22434
B6: (123) 456-7890
B7: For Internal Use Only
B9: Payroll for June 2023
B10: DEPARTMENT | C10: EMPLOYEE NUMBER | D10: FIRST NAME | E10: LAST NAME | F10: DATE OF HIRE | G10: BENEFITS | H10: BENEFIT COST | I10: HOURS | J10: HOURLY RATE | K10: MEDICAL | M10: Average Benefit Cost: | Q10: Departments
B11: Receiving | C11: DXS617 | D11: John | E11: Smith | F11: 10/20/2023 | G11: Dental | H11: 50 | I11: 23 | J11: 43.76
B12: Sales | C12: CVM702 | D12: Emily | E12: Johnson | F12: 02/07/2014 | G12: Medical | H12: 100 | I12: 19 | J12: 35.25
B13: Receiving | C13: KCL634 | D13: Michael | E13: Williams | F13: 05/21/2018 | G13: Vision | H13: 200 | I13: 17 | J13: 48.73
B14: Sales | C14: BAB252 | D14: Sarah | E14: Brown | F14: 05/21/2016 | G14: Medical | H14: 100 | I14: 36 | J14: 47.91
B15: HR | C15: KRV992 | D15: David | E15: Jones | F15: 03/08/2011 | G15: Dental | H15: 110 | I15: 4 | J15: 30.04
B16: Sales | C16: PWW863 | D16: Jessica | E16: Garcia | F16: 11/20/2014 | G16: Medical | H16: 150 | I16: 21 | J16: 46.95
B17: Shipping | C17: FZM837 | D17: James | E17: Miller | F17: 03/17/2018 | G17: Vision | H17: 80 | I17: 8 | J17: 30.22
B18: Shipping | C18: QVT993 | D18: Sophia | E18: Davis | F18: 01/16/2018 | G18: Dental | H18: 100 | I18: 23 | J18: 39.86
B19: Shipping | C19: EYW948 | D19: Daniel | E19: Rodriguez | F19: 06/01/2021 | G19: Medical | H19: 220 | I19: 28 | J19: 44.66
B20: Shipping | C20: ORO173 | D20: Olivia | E20: Martinez | F20: 04/19/2010 | G20: Vision | H20: 100 | I20: 22 | J20: 36.66
B21: Shipping | C21: ACJ292 | D21: William | E21: Hernandez | F21: 08/17/2022 | G21: Medical | H21: 220 | I21: 7 | J21: 44.39
B22: Marketing | C22: TUE642 | D22: Emma | E22: Lopez | F22: 08/22/2023 | G22: Medical | H22: 100 | I22: 36 | J22: 34.68
B23: HR | C23: TNK260 | D23: Noah | E23: Gonzalez | F23: 10/31/2019 | G23: Medical | H23: 140 | I23: 9 | J23: 36.15
B24: Shipping | C24: TKM859 | D24: Ava | E24: Wilson | F24: 11/26/2012 | G24: Medical | H24: 100 | I24: 38 | J24: 46.03
B25: Sales | C25: CUN323 | D25: Liam | E25: Anderson | F25: 09/23/2014 | G25: Vision | H25: 100 | I25: 5 | J25: 49.07
B26: HR | C26: VDJ917 | D26: Mia | E26: Thomas | F26: 08/25/2014 | G26: Vision | H26: 210 | I26: 22 | J26: 39.9
B27: HR | C27: VEQ942 | D27: Benjamin | E27: Taylor | F27: 05/06/2011 | G27: Dental | H27: 60 | I27: 28 | J27: 34.51
B28: Receiving | C28: EWJ123 | D28: Isabella | E28: Moore | F28: 05/21/2020 | G28: Medical | H28: 100 | I28: 17 | J28: 32.63
B29: Marketing | C29: WJK976 | D29: Lucas | E29: Jackson | F29: 01/30/2018 | G29: Dental | H29: 50 | I29: 39 | J29: 37.11
B30: Receiving | C30: AOS909 | D30: Amelia | E30: Lee | F30: 12/23/2010 | G30: Dental | H30: 50 | I30: 21 | J30: 48.09

Sheet Ch6-Instructions
A1: Charting
A2: Excel 365 Associate Exam
A3: Instructions
A5: For Internal Use Only
A8: Create a Clustered Column Chart
A9: 1. Select just the data for January, February, and March (Cells D10:G16)
A10: 2. Click the Insert tab at the top
A11: 3. Under the Charts section click columns
A12: 4. Click on the Clustered Column Chart option
A13: Video Links | C13: =HYPERLINK(TOC!D42) -> https://youtu.be/NdvCTjbpJ-8
A15: Filter the Chart
A16: 1. Click on the chart
A17: 2. On the right-hand side click the filter button
A18: 3. Under the Categories section click the (Select All) button to deselect everything
A19: 4. Check off Electronic Accessories and Sports and Travel
A20: 5. Click Apply
A21: Video Links | C21: =HYPERLINK(TOC!D42) -> https://youtu.be/NdvCTjbpJ-8
A23: Apply Quick Layout
A24: 1. Click on the chart
A25: 2. Click on the Chart Design tab at the top
A26: 3. Click Quick Layout under Chart Layouts
A27: 4. Click Quick Layout 9
A28: Video Links | C28: =HYPERLINK(TOC!D42) -> https://youtu.be/NdvCTjbpJ-8
A30: Apply Chart Style
A31: 1. Click on the chart
A32: 2. Click on the Chart Design tab at the top
A33: 3. Click the drop-down arrow under the Chart Styles section
A34: 4. Click Style 7
A35: Video Linkss: | C35: =HYPERLINK(TOC!D43) -> https://youtu.be/BHHmtCPwxm0
A37: Add Data Labels
A38: 1. Click on the chart
A39: 2. Click on the Chart Design tab at the top
A40: 3. Click Add Chart Element under Chart Layouts
A41: 4. Click Data Labels
A42: 5. Click Outside End
A43: Video Links | C43: =HYPERLINK(TOC!D43) -> https://youtu.be/BHHmtCPwxm0
A45: Swap Data Over Axis
A46: 1. Click on the chart
A47: 2. Click on the Chart Design tab at the top
A48: 3. Click Switch Row/Column under the Data section
A49: Video Links | C49: =HYPERLINK(TOC!D43) -> https://youtu.be/BHHmtCPwxm0
A51: Add Data
A52: 1. Click on the chart
A53: 2. Click on the Chart Design tab at the top
A54: 3. Click Select Data under the Data section
A55: 4. Reselect the date to include the whole table (D10:J16)
A56: 5. Click OK
A57: Video Links | C57: =HYPERLINK(TOC!D44) -> https://youtu.be/N0GVpN0UKQM
A59: Add Chart Elements
A60: Chart Title
A61: 1. Click on the Chart Title on the top
A62: 2. Type “Segment Sales Report Q1 and Q2” and hit enter
A63: 3. The title will automatically change and you can see it changing in the formula bar
A64: Video Links | C64: =HYPERLINK(TOC!D44) -> https://youtu.be/N0GVpN0UKQM
A66: Add Chart Elements
A67: Vertical Axis Title
A68: 1. Type “Sales” and hit enter
A69: 2. The title will automatically change and you can see it changing in the formula bar
A70: Video Links | C70: =HYPERLINK(TOC!D44) -> https://youtu.be/N0GVpN0UKQM
A72: Add Chart Elements
A73: Linear Trendline
A74: 1. Click on the chart
A75: 2. Click on the Chart Design tab at the top
A76: 3. Click Add Chart Element under Chart Layouts
A77: 4. Click Trendline
A78: 5. Click Linear
A79: 6. Click Food and Beverage
A80: 7. Click OK
A81: Video Links | C81: =HYPERLINK(TOC!D45) -> https://youtu.be/k1H0K74VqQY
A83: Add ALT Text
A84: 1. Click on the chart
A85: 2. Click the Format tab at the top
A86: 3. Click Alt Text under the Accessibility Section
A87: 4. In the box on the right paste or type the text “Sales Report by Segment for Q1 and Q2”
A88: Video Links | C88: =HYPERLINK(TOC!D46) -> https://youtu.be/X2F_g_f9y-w
A90: Move Chart
A91: 1. Click on the chart
A92: 2. Click on the Chart Design tab at the top
A93: 3. Click Move Chart under the Location section
A94: 4. In the dialogue box click New Sheet
A95: 5. Type “Segment Sales Q1 and Q2” as the name
A96: 6. Click OK
A97: Video Links | C97: =HYPERLINK(TOC!D46) -> https://youtu.be/X2F_g_f9y-w

Sheet Ch6-Sales_by_Product_Line
C1: Superstore
C2: Segment Sales Report
C3: 123 56th Road
C4: San Diego, CA 22434
C5: (123) 456-7890
C6: For Internal Use Only
E9: Q1 | H9: Q2
D10: Product Line | E10: January | F10: February | G10: March | H10: April | I10: May | J10: June | K10: Total
D11: Electronic Accessories | E11: 17935 | F11: 16536 | G11: 17279 | H11: 31440 | I11: 53059 | J11: 47181 | K11: =SUM(E11:J11) -> 183430
D12: Fashion Accessories | E12: 18424 | F12: 18105 | G12: 15191 | H12: 35873 | I12: 46936 | J12: 49245 | K12: =SUM(E12:J12) -> 183774
D13: Food and Beverages | E13: 18639 | F13: 19048 | G13: 15785 | H13: 37045 | I13: 54929 | J13: 48151 | K13: =SUM(E13:J13) -> 193597
D14: Health and Beauty | E14: 15603 | F14: 13907 | G14: 17341 | H14: 31226 | I14: 41064 | J14: 46884 | K14: 166025
D15: Home and Lifestyle | E15: 19936 | F15: 11842 | G15: 19936 | H15: 34686 | I15: 32744 | J15: 49441 | K15: 168585
D16: Sports and Travel | E16: 18711 | F16: 13152 | G16: 18711 | H16: 38465 | I16: 41042 | J16: 41856 | K16: 171937

Sheet Audit (hidden)
A1: Timestamp | B1: Sheet Name | C1: Cell | D1: Previous Value | E1: New Value
A2: File closed | B2: caiazzop | C2: 2025-01-07T15:11:49
A3: Cell changed | B3: caiazzop | C3: 2025-01-16T16:37:15 | D3: Ch6-Sales_by_Product_Line | E3: $A$37
A4: File closed | B4: caiazzop | C4: 2025-01-16T16:37:32
A5: File opened | B5: caiazzop | C5: 2025-01-22T12:47:45
A6: Cell changed | B6: caiazzop | C6: 2025-01-22T12:48:01 | D6: User_Info | E6: $D$15
A7: Cell changed | B7: caiazzop | C7: 2025-01-22T12:48:01 | D7: User_Info | E7: $D$16
A8: Cell changed | B8: caiazzop | C8: 2025-01-22T12:48:01 | D8: User_Info | E8: $D$17
A9: Cell changed | B9: caiazzop | C9: 2025-01-22T12:48:01 | D9: User_Info | E9: $D$18
A10: Cell changed | B10: caiazzop | C10: 2025-01-22T12:48:01 | D10: User_Info | E10: $D$19
A11: Cell changed | B11: caiazzop | C11: 2025-01-22T12:48:01 | D11: User_Info | E11: $D$20
A12: File closed | B12: caiazzop | C12: 2025-01-22T12:49:29
